bitfinex/quotes_SOLUSD_20240725
["timestamp","ask_amount","ask_price","bid_price","bid_amount"]
[1721936283107,33.0662,168.46,168.39,22.3910761]
[1721936283301,27.13,168.46,168.39,0.8022761]
[1721936283521,5.9368,168.44,168.39,0.8022761]
[1721936283835,27.13,168.43,168.39,0.8022761]
[1721936284026,33.0672,168.43,168.39,0.8022761]
[1721936284230,5.9377,168.42,168.39,0.8022761]
[1721936284525,5.9375,168.42,168.39,0.8022761]
[1721936284730,6.18836355,168.5,168.39,6.9003761]
[1721936284914,27.13,168.5,168.44,5.9367]
[1721936285116,27.13,168.5,168.45,5.9364]
[1721936285421,27.13,168.5,168.39,6.9003761]
[1721936285620,27.13,168.5,168.4,20.0]
[1721936285806,27.13,168.5,168.46,5.9358]
[1721936286208,5.9353,168.49,168.4,20.0]
[1721936286431,33.0647,168.5,168.43,5.9368]
[1721936287011,27.13,168.5,168.42,5.9374]
[1721936287215,33.065,168.5,168.42,5.9374]
[1721936287416,5.9351,168.49,168.42,5.9374]
[1721936287851,33.0647,168.5,168.43,5.9371]
[1721936288317,5.935,168.49,168.42,5.9374]
[1721936288515,5.9347,168.5,168.43,5.9371]
[1721936289107,5.935,168.49,168.42,5.9374]
[1721936289318,5.9355,168.48,168.41,5.9377]
[1721936289524,5.9354,168.48,168.41,5.9378]
[1721936289734,50.52,168.51,168.39,6.9003761]
[1721936289938,5.9368,168.44,168.39,0.8022761]
[1721936290434,5.9374,168.43,168.39,0.8022761]
[1721936290631,5.9382,168.4,168.39,0.8022761]
[1721936290839,5.9379,168.41,168.39,0.8022761]
[1721936291129,36.4575,168.43,168.39,0.8022761]
[1721936291301,5.9378,168.41,168.39,0.8022761]
[1721936291508,36.4574,168.43,168.39,0.8022761]
[1721936291725,30.52,168.43,168.39,0.8022761]
[1721936291934,5.9382,168.4,168.39,0.8022761]
[1721936293720,50.52,168.43,168.27,6.3079]
[1721936293721,20.0,168.39,168.27,6.3079]
[1721936293927,20.0,168.39,168.22,0.8022761]
[1721936293928,5.9407,168.33,168.23,6.3079]
[1721936294139,20.0,168.34,168.23,6.3079]
[1721936294431,20.0,168.34,168.23,12.252]
[1721936294432,5.9417,168.3,168.23,12.252]
[1721936294613,5.9428,168.28,168.22,0.8022761]
[1721936294811,30.52,168.31,168.22,0.8022761]
[1721936295010,5.9417,168.3,168.23,5.9441]
[1721936295315,50.52,168.31,168.22,0.8022761]
[1721936295508,20.0,168.29,168.22,0.8022761]
[1721936295710,35.5897,168.29,168.22,0.8022761]
[1721936295914,20.0,168.26,168.22,0.8022761]
[1721936296112,36.4642,168.23,168.22,0.8022761]
[1721936296337,20.0,168.22,168.09,21.414]
[1721936296637,45.0,168.22,168.09,15.4651]
[1721936296931,5.9438,168.25,168.09,15.4651]
[1721936297107,30.52,168.27,168.09,14.9651]
[1721936297307,6.0291,168.28,168.09,14.9651]
[1721936297521,11.9717,168.28,168.21,5.9448]
[1721936297721,6.0291,168.28,168.09,14.9651]
[1721936297921,5.943,168.27,168.2,5.945]
[1721936298125,6.0291,168.28,168.1,45.0]
[1721936298436,30.52,168.32,168.12,6.0922]
[1721936298638,6.0291,168.33,168.13,66.18870722]
[1721936298814,6.0291,168.33,168.25,5.9435]
[1721936298815,5.9411,168.32,168.25,5.9435]
[1721936299016,6.0291,168.33,168.15,30.52]
[1721936299244,30.52,168.36,168.28,5.9423]
[1721936299452,5.9411,168.32,168.25,5.9432]
[1721936299742,5.9428,168.28,168.16,66.18853217]
[1721936299920,5.9436,168.25,168.18,5.9459]
[1721936300235,30.52,168.32,168.13,16.65410894]
[1721936300833,20.0,168.29,168.13,15.4651]
[1721936301040,14.8549,168.3,168.13,15.4651]
[1721936301241,65.0,168.29,168.16,5.9465]
[1721936301416,30.52,168.28,168.16,5.9465]
[1721936301725,65.0,168.27,168.16,5.9465]
[1721936302121,65.0,168.27,168.13,15.4651]
[1721936302313,50.52,168.24,168.13,5.9474]
[1721936302514,50.52,168.24,168.08,16.1772]
[1721936302515,45.0,168.23,168.08,22.3929]
[1721936302913,5.945,168.21,168.14,5.9474]
[1721936303120,50.52,168.24,168.13,5.9477]
[1721936303329,50.52,168.24,168.08,22.3929]
[1721936303330,5.9465,168.17,168.08,22.3929]
[1721936303534,20.0,168.22,168.08,22.3929]
[1721936303535,5.946,168.18,168.08,22.3929]
[1721936303729,5.946,168.18,168.08,21.8929]
[1721936304036,5.9464,168.17,168.08,21.8929]
[1721936304337,5.9464,168.17,168.09,5.9488]
[1721936304530,5.946,168.18,168.09,1.18964354]
[1721936304734,20.0,168.22,168.1,5.9486]
[1721936304916,45.0,168.21,168.11,5.9484]
[1721936305112,5.9457,168.19,168.12,5.9481]
[1721936305320,5.946,168.18,168.08,21.8929]
[1721936305517,59.8625,168.21,168.09,21.18960503]
[1721936305723,5.9457,168.19,168.12,5.9479]
[1721936305947,45.0,168.21,168.12,5.9479]
[1721936306244,5.9452,168.21,168.13,5.9477]
[1721936306737,30.52,168.24,168.15,5.9467]
[1721936306947,5.9442,168.23,168.15,5.9467]
[1721936307146,8.38210218,168.26,168.1,1.18933898]
[1721936307324,5.9439,168.24,168.16,5.9463]
[1721936307524,5.9439,168.24,168.17,5.9463]
[1721936307919,5.9452,168.21,168.13,5.9474]
[1721936308123,5.9452,168.21,168.14,5.9472]
[1721936308325,20.0,168.25,168.1,45.0]
[1721936308525,5.9441,168.24,168.16,5.9466]
[1721936308722,5.9443,168.23,168.1,46.18916279]
[1721936308945,30.52,168.24,168.11,21.18921134]
[1721936309248,20.0,168.22,168.08,21.8929]
[1721936309441,45.0,168.23,168.08,21.8929]
[1721936309634,5.9456,168.19,168.11,5.9481]
[1721936309836,5.9461,168.18,168.11,5.9481]
[1721936310020,5.9464,168.17,168.1,5.9487]
[1721936310362,5.946,168.18,168.1,5.9487]
[1721936311118,5.946,168.18,168.11,5.9483]
[1721936311546,50.52,168.2,168.08,21.8929]
[1721936311843,30.52,168.2,168.08,6.2157]
[1721936312034,5.9457,168.19,168.12,5.9478]
[1721936312345,5.9453,168.2,168.13,5.9477]
[1721936312522,26.18145058,168.23,168.08,7.40506345]
[1721936312867,5.9457,168.19,168.08,6.2157]
[1721936313039,5.946,168.18,168.09,45.0]
[1721936313345,20.0,168.2,168.08,6.2157]
[1721936313558,35.1916,168.18,168.05,0.8022761]
[1721936313722,15.1916,168.18,168.05,0.8022761]
[1721936313921,5.9474,168.15,168.08,5.9494]
[1721936314237,21.37305058,168.23,168.09,1.18976117]
[1721936314546,5.9448,168.22,168.15,5.9467]
[1721936314931,30.52,168.24,168.09,1.18976117]
[1721936315327,30.52,168.24,168.15,5.947]
[1721936315328,5.9446,168.22,168.15,5.947]
[1721936315522,20.0,168.23,168.12,5.9478]
[1721936315728,5.9457,168.19,168.12,5.9478]
[1721936315946,20.0,168.23,168.13,5.9477]
[1721936316260,5.9456,168.2,168.13,5.9477]
[1721936317045,5.9456,168.19,168.12,5.948]
[1721936317223,20.0,168.23,168.06,46.18926284]
[1721936317427,20.0,168.21,168.06,1.18926284]
[1721936317741,45.3803,168.24,168.06,1.18926284]
[1721936317942,5.9457,168.19,168.06,1.18926284]
[1721936318147,45.0,168.23,168.06,1.18926284]
[1721936318541,5.9466,168.17,168.11,5.9484]
[1721936318851,20.0,168.2,168.1,5.9488]
[1721936319144,20.0,168.2,168.08,5.9492]
[1721936319353,36.2158,168.18,168.05,0.8022761]
[1721936319651,36.2158,168.18,168.05,6.7527761]
[1721936319652,5.9484,168.12,168.05,6.7527761]
[1721936319833,5.9484,168.12,168.06,5.9502]
[1721936320037,30.52,168.17,168.05,0.8022761]
[1721936320229,65.3866,168.17,168.05,0.8022761]
[1721936320446,5.9488,168.1,168.05,0.8022761]
[1721936320628,5.9482,168.12,168.05,0.8022761]
[1721936320933,5.9477,168.14,168.05,0.8022761]
[1721936321132,5.9477,168.14,168.07,5.9496]
[1721936321334,5.9481,168.12,168.05,0.8022761]
[1721936321753,5.9478,168.13,168.06,5.9501]
[1721936321932,5.9474,168.14,168.07,5.9497]
[1721936322261,32.91852227,168.17,168.09,5.949]
[1721936322431,32.91852227,168.17,168.07,5.9495]
[1721936322738,5.9468,168.16,168.09,5.9491]
[1721936323059,32.91852227,168.17,168.08,5.9494]
[1721936323357,32.91852227,168.17,168.05,0.8022761]
[1721936323358,52.91852227,168.17,168.05,0.8022761]
[1721936323543,45.0,168.16,168.05,0.8022761]
[1721936323862,5.9488,168.1,168.05,0.8022761]
[1721936324034,65.0,168.16,168.05,0.8022761]
[1721936324230,47.78522227,168.17,168.05,0.8022761]
[1721936324453,20.0,168.16,168.05,0.8022761]
[1721936324657,5.9492,168.09,168.05,0.8022761]
[1721936324834,14.8699,168.13,168.05,0.8022761]
[1721936325033,5.9499,168.07,168.05,0.8022761]
[1721936325246,14.872,168.11,168.05,0.8022761]
[1721936325532,50.52,168.13,168.05,0.8022761]
[1721936325533,5.9502,168.06,168.05,0.8022761]
[1721936325732,5.9499,168.07,168.05,0.8022761]
[1721936325958,5.9502,168.06,168.05,0.8022761]
[1721936326463,50.9502,168.06,168.05,0.8022761]
[1721936326630,5.9502,168.06,168.05,0.8022761]
[1721936326957,5.9498,168.08,168.05,0.8022761]
[1721936327131,30.52,168.09,168.05,0.8022761]
[1721936327328,5.9498,168.08,168.05,0.8022761]
[1721936327547,5.9495,168.08,168.05,0.8022761]
[1721936327753,5.9488,168.1,168.05,0.8022761]
[1721936327935,2.37635068,168.11,168.05,0.8022761]
[1721936328241,45.0,168.11,168.05,0.8022761]
[1721936328447,65.0,168.11,168.05,0.8022761]
[1721936328649,5.9502,168.06,168.05,0.8022761]
[1721936329549,36.4702,168.06,168.05,0.8022761]
[1721936329743,5.9512,168.04,167.96,5.9537]
[1721936329948,75.52,168.06,167.96,5.9537]
[1721936330140,30.52,168.06,167.91,7.64680196]
[1721936330346,30.52,168.06,167.91,6.4562]
[1721936330557,20.0,168.05,167.91,6.4562]
[1721936330739,30.52,168.06,167.92,20.0]
[1721936330942,45.0,168.04,167.93,1.190753]
[1721936331256,5.9523,168.01,167.93,5.9548]
[1721936331666,5.9525,168.0,167.93,5.9548]
[1721936331958,5.9528,167.99,167.91,6.4562]
[1721936332261,5.9523,168.01,167.93,5.9548]
[1721936332435,5.9525,168.0,167.93,5.9548]
[1721936333558,12.5297,168.02,167.94,5.9544]
[1721936333756,63.7702941,168.04,167.95,5.9538]
[1721936333962,63.7702941,168.04,167.96,5.9537]
[1721936334164,18.7702941,168.04,167.96,5.9537]
[1721936334463,5.9516,168.02,167.94,5.9541]
[1721936334648,18.7702941,168.04,167.93,5.9548]
[1721936334849,5.9518,168.02,167.91,6.4562]
[1721936335166,5.9518,168.02,167.92,45.0]
[1721936335459,18.7702941,168.04,167.93,5.9545]
[1721936335658,18.7702941,168.04,167.94,5.9544]
[1721936335869,18.7702941,168.04,167.91,6.4562]
[1721936335870,5.9535,167.97,167.91,6.4562]
[1721936336166,5.954,167.96,167.91,6.4562]
[1721936336341,30.52,168.02,167.91,6.4562]
[1721936336537,5.953,167.98,167.91,12.4114]
[1721936336941,14.8812,168.0,167.88,0.8022761]
[1721936337432,14.8812,168.0,167.9,5.9556]
[1721936337636,5.9537,167.97,167.9,5.9556]
[1721936337842,30.52,168.02,167.88,0.8022761]
[1721936338266,36.4716,168.02,167.95,5.954]
[1721936338657,1.96220218,168.04,167.97,22.182]
[1721936338957,5.9489,168.1,168.03,5.9512]
[1721936339162,12.5541,168.11,168.03,5.9512]
[1721936339367,15.01410997,168.11,168.03,5.9512]
[1721936340639,5.9492,168.09,168.02,5.9516]
[1721936340848,9.06560997,168.11,167.98,45.0]
[1721936341060,5.9492,168.09,168.02,5.9513]
[1721936341257,9.06560997,168.11,167.94,21.8721]
[1721936341453,20.0,168.03,167.94,21.8721]
[1721936341648,25.9523,168.01,167.93,5.9548]
[1721936341857,5.9523,168.01,167.9,15.0681]
[1721936342059,5.9513,168.03,167.9,15.0681]
[1721936342238,22.147,168.05,167.9,16.25884813]
[1721936342441,5.9509,168.05,167.9,16.25884813]
[1721936342661,36.4701,168.07,167.9,16.25884813]
[1721936342960,30.52,168.07,167.9,16.25884813]
[1721936343163,5.9503,168.06,167.9,16.25884813]
[1721936343367,5.9513,168.04,167.91,45.0]
[1721936343560,5.9513,168.03,167.92,20.0]
[1721936343744,5.9513,168.03,167.93,45.0]
[1721936343948,5.9513,168.03,167.94,21.19063312]
[1721936344270,5.9513,168.03,167.95,45.0]
[1721936344649,5.9513,168.03,167.94,20.0]
[1721936344867,5.9513,168.03,167.91,20.0]
[1721936345068,20.0,168.05,167.92,45.0]
[1721936345378,5.9516,168.03,167.93,20.0]
[1721936345662,16.5987,168.01,167.93,20.0]
[1721936345872,30.52,167.99,167.79,28.67932308]
[1721936346049,5.9531,167.98,167.82,1.1911657]
[1721936346459,50.52,167.99,167.81,1.0275359]
[1721936346658,5.9554,167.92,167.82,1.19132781]
[1721936346859,5.9547,167.94,167.82,1.19132781]
[1721936347069,2.386822,167.98,167.83,1.1913157]
[1721936347245,16.5987,168.01,167.89,22.5103]
[1721936348158,12.5028,168.02,167.9,46.1908892]
[1721936348359,5.9511,168.04,167.91,20.0]
[1721936348546,5.9511,168.04,167.92,46.19063863]
[1721936348747,35.2429,168.06,167.92,45.0]
[1721936349147,5.9512,168.04,167.92,45.0]
[1721936349346,5.9514,168.03,167.92,45.0]
[1721936349666,5.9524,168.0,167.92,45.0]
[1721936350051,5.9506,168.05,167.93,1.19076523]
[1721936350252,6.1747,168.07,167.93,21.19076523]
[1721936350453,6.1747,168.07,167.94,45.0]
[1721936350662,52.96077429,168.08,167.95,1.19044045]
[1721936350847,52.96077429,168.08,167.95,20.0]
[1721936351049,5.9503,168.06,167.96,45.0]
[1721936351264,5.9499,168.07,167.96,45.0]
[1721936351471,30.52,168.08,167.96,45.0]
[1721936352277,5.9504,168.06,167.96,45.0]
[1721936352452,50.52,168.08,167.96,45.0]
[1721936352653,56.69231848,168.08,167.96,45.0]
[1721936352860,5.9503,168.06,167.96,45.0]
[1721936353064,36.4698,168.08,167.96,45.0]
[1721936353269,36.4681,168.12,167.98,22.4708]
[1721936353569,5.9485,168.11,167.99,66.19013515]
[1721936353872,5.9488,168.1,167.99,66.19013515]
[1721936354655,5.9485,168.11,167.99,66.19013515]
[1721936354854,5.9481,168.13,167.99,66.19013515]
[1721936355174,30.52,168.16,167.99,66.19013515]
[1721936355399,5.948,168.13,167.99,66.19013515]
[1721936355547,50.52,168.16,167.99,66.19013515]
[1721936355879,2.39572167,168.17,167.99,66.19013515]
[1721936356054,22.4728,168.19,168.0,22.1976]
[1721936356370,22.4728,168.19,168.01,66.18972181]
[1721936356371,5.9468,168.16,168.01,66.18972181]
[1721936356549,24.82861369,168.19,168.02,1.18970526]
[1721936356550,44.82861369,168.19,168.02,1.18970526]
[1721936356757,50.52,168.16,168.01,65.0]
[1721936356951,5.9478,168.13,168.02,1.18998669]
[1721936357257,50.52,168.16,168.01,45.0]
[1721936357456,5.9484,168.12,168.01,45.0]
[1721936357654,5.9484,168.12,168.02,1.1899568]
[1721936357875,32.48220218,168.16,168.02,1.1899568]
[1721936358053,36.4669,168.16,168.02,1.1899568]
[1721936358250,24.82861369,168.19,168.02,1.1899568]
[1721936358468,5.946,168.18,168.02,1.1899568]
[1721936358768,5.9468,168.16,168.02,21.1899568]
[1721936358986,5.9468,168.16,168.03,45.0]
[1721936359170,5.947,168.15,168.04,21.1896422]
[1721936359481,5.9467,168.16,168.05,45.0]
[1721936359779,5.9475,168.14,168.05,45.0]
[1721936359982,20.0,168.17,168.05,45.0]
[1721936360769,5.9475,168.14,168.05,45.0]
[1721936361074,20.0,168.17,168.05,45.0]
[1721936361075,5.9471,168.15,168.05,45.0]
[1721936361456,5.9467,168.16,168.05,45.0]
[1721936361654,15.94915951,168.19,168.05,45.0]
[1721936361965,65.0,168.18,168.05,45.0]
[1721936362165,2.35581369,168.19,168.07,22.1884]
[1721936362474,5.9463,168.17,168.08,46.18957238]
[1721936362677,2.43604372,168.2,168.08,46.18957238]
[1721936362852,5.9459,168.19,168.08,46.18957238]
[1721936363379,5.946,168.18,168.08,46.18957238]
[1721936364273,5.9456,168.19,168.09,20.0]
[1721936364474,5.946,168.18,168.1,46.18946924]
[1721936364861,5.946,168.18,168.1,45.0]
[1721936365060,5.9457,168.19,168.1,45.0]
[1721936365758,5.946,168.18,168.1,46.18947507]
[1721936366265,5.946,168.18,168.1,45.0]
[1721936366681,22.45940238,168.22,168.1,45.0]
[1721936366883,5.9457,168.19,168.1,45.0]
[1721936367181,5.9452,168.21,168.11,1.18947425]
[1721936367391,8.40400238,168.22,168.11,1.18947425]
[1721936367560,5.9446,168.22,168.11,21.18947425]
[1721936367892,8.38948342,168.23,168.12,45.0]
[1721936368062,5.9446,168.22,168.13,1.18924781]
[1721936368262,5.9446,168.22,168.12,45.0]
[1721936368491,5.9443,168.23,168.12,45.0]
[1721936368779,388.81090247,168.24,168.14,15.1245]
[1721936368985,56.4627,168.28,168.16,6.6372]
[1721936369164,5.9429,168.27,168.17,46.18897056]
[1721936369367,380.5,168.31,168.18,1.18897144]
[1721936369565,44.44654659,168.33,168.17,45.0]
[1721936369566,50.52,168.32,168.17,45.0]
[1721936369779,6.1692999,168.31,168.17,45.0]
[1721936370088,5.9432,168.26,168.17,45.0]
[1721936370398,5.9428,168.27,168.17,45.0]
[1721936370688,20.0,168.3,168.17,45.0]
[1721936370984,5.9433,168.26,168.18,1.18890894]
[1721936371176,6.1692999,168.31,168.18,1.18890894]
[1721936371365,6.1692999,168.31,168.18,21.18890894]
[1721936371564,6.1692999,168.31,168.19,45.0]
[1721936371868,6.1692999,168.31,168.16,6.6372]
[1721936371869,20.0,168.28,168.16,6.6372]
[1721936372179,6.1692999,168.31,168.17,15.3698]
[1721936372489,5.9414,168.31,168.17,36.55842729]
[1721936372660,5.9414,168.31,168.18,1.18862729]
[1721936372973,5.9418,168.3,168.18,1.18862729]
[1721936373359,5.9421,168.29,168.18,46.18862729]
[1721936373585,5.9425,168.28,168.19,20.0]
[1721936373772,5.9425,168.28,168.2,45.0]
[1721936374178,20.0,168.33,168.2,45.0]
[1721936374179,5.9421,168.3,168.2,45.0]
[1721936374690,20.0,168.33,168.2,45.0]
[1721936374984,5.9418,168.3,168.2,45.0]
[1721936375289,5.9417,168.31,168.2,45.0]
[1721936375468,5.9417,168.31,168.2,46.18861027]
[1721936376069,23.38837062,168.34,168.2,45.0]
[1721936376273,5.9425,168.28,168.19,20.0]
[1721936376492,5.9421,168.29,168.18,20.0]
[1721936377686,5.9421,168.29,168.19,45.0]
[1721936378092,5.9435,168.26,168.19,45.0]
[1721936378290,20.0,168.3,168.17,15.3698]
[1721936378595,5.9432,168.26,168.17,15.3698]
[1721936378962,5.9436,168.25,168.17,15.3698]
[1721936379169,5.9439,168.24,168.17,15.3698]
[1721936379476,380.5,168.32,168.17,16.55892089]
[1721936379795,5.942,168.3,168.18,20.0]
[1721936380387,20.0,168.33,168.18,21.18873193]
[1721936380581,5.9415,168.31,168.19,45.0]
[1721936381090,5.9418,168.3,168.19,45.0]
[1721936381287,5.9414,168.31,168.19,45.0]
[1721936381493,5.9414,168.31,168.2,1.18861128]
[1721936381691,5.9411,168.32,168.21,1.18861223]
[1721936381899,5.9411,168.32,168.21,46.18861223]
[1721936382081,8.30671566,168.34,168.22,20.0]
[1721936382290,8.30671566,168.34,168.23,52.31006515]
[1721936382476,5.9407,168.33,168.24,1.18847733]
[1721936382677,5.9411,168.32,168.24,1.18847733]
[1721936382870,5.9407,168.33,168.24,1.18847733]
[1721936383275,5.9404,168.34,168.24,1.18847733]
[1721936383478,5.9404,168.34,168.23,51.1216]
[1721936383676,5.9409,168.33,168.23,51.1216]
[1721936384088,5.9409,168.33,168.24,1.18842918]
[1721936384482,5.9409,168.33,168.23,52.3100286]
[1721936384681,5.9409,168.33,168.24,1.18842909]
[1721936385107,5.9404,168.34,168.24,1.18842909]
[1721936385474,5.9404,168.34,168.25,16.4091]
[1721936385687,5.9404,168.34,168.26,46.18843017]
[1721936386386,5.9404,168.34,168.27,1.18843013]
[1721936386595,5.9404,168.34,168.26,45.0]
[1721936386596,17.31485782,168.36,168.25,16.4091]
[1721936386797,5.9419,168.3,168.25,16.4091]
[1721936386986,5.9424,168.29,168.23,6.1216]
[1721936387189,5.9411,168.32,168.23,6.1216]
[1721936388291,5.9407,168.33,168.24,45.0]
[1721936389174,5.9404,168.34,168.24,45.0]
[1721936389979,5.9407,168.33,168.24,45.0]
[1721936390495,25.9397,168.36,168.24,45.0]
[1721936390679,24.4417654,168.37,168.24,46.18851356]
[1721936391088,5.9397,168.36,168.24,46.18851356]
[1721936391288,5.9393,168.37,168.25,20.0]
[1721936391493,5.9397,168.36,168.26,46.18822978]
[1721936391684,5.9397,168.36,168.27,1.18823229]
[1721936392295,5.9397,168.36,168.26,45.0]
[1721936393292,5.9394,168.37,168.27,1.18823086]
[1721936393492,33.099,168.38,168.27,1.18823086]
[1721936393686,33.099,168.38,168.28,15.9874]
[1721936393880,5.9394,168.37,168.29,45.0]
[1721936394281,5.939,168.38,168.29,45.0]
[1721936394699,5.9397,168.36,168.29,45.0]
[1721936395092,5.9393,168.37,168.29,45.0]
[1721936395599,2.40572389,168.4,168.28,15.9874]
[1721936395809,5.939,168.38,168.29,45.0]
[1721936396593,5.9393,168.37,168.29,45.0]
[1721936397002,5.939,168.38,168.29,45.0]
[1721936397402,5.9386,168.39,168.29,45.0]
[1721936397593,5.9386,168.39,168.3,1.18798126]
[1721936397914,5.9383,168.4,168.29,45.0]
[1721936398099,5.9382,168.4,168.29,46.1879815]
[1721936398407,5.9382,168.4,168.31,6.0894]
[1721936398615,5.9382,168.4,168.32,45.0]
[1721936398902,2.39769599,168.41,168.32,45.0]
[1721936399113,5.9386,168.39,168.33,1.18805609]
[1721936399285,5.9383,168.4,168.32,45.0]
[1721936399605,5.9386,168.39,168.32,45.0]
[1721936399911,5.9391,168.38,168.32,45.0]
[1721936400096,5.9386,168.39,168.32,45.0]
[1721936400290,14.8443,168.42,168.31,6.0894]
[1721936400602,5.939,168.38,168.31,6.0894]
[1721936400782,5.9393,168.37,168.31,6.0894]
[1721936400984,5.939,168.38,168.31,6.0894]
[1721936401401,5.9393,168.37,168.31,6.0894]
[1721936401784,6.0832,168.26,168.15,6.5027]
[1721936402006,14.8613,168.23,168.11,22.6447]
[1721936402202,72.88281447,168.25,168.11,22.6447]
[1721936402376,14.8631,168.21,168.11,22.6447]
[1721936402578,7.88281447,168.24,168.12,1.18946073]
[1721936402917,6.0832,168.26,168.12,1.18946073]
[1721936403203,387.75448114,168.3,168.12,1.18946073]
[1721936403408,20.0,168.29,168.12,1.18946073]
[1721936403606,5.9436,168.25,168.12,21.18946073]
[1721936403802,5.944,168.24,168.12,21.18946073]
[1721936404108,5.9447,168.22,168.12,20.0]
[1721936404298,20.0,168.27,168.11,23.83389711]
[1721936404495,45.0,168.28,168.11,22.6447]
[1721936404496,65.0,168.26,168.11,22.6447]
[1721936404805,20.0,168.26,168.12,1.18927692]
[1721936405014,40.0,168.26,168.11,22.6447]
[1721936405213,5.9442,168.23,168.12,1.18926246]
[1721936405508,5.9446,168.22,168.12,1.18926246]
[1721936405809,5.9446,168.22,168.12,66.18926246]
[1721936406018,5.9443,168.23,168.12,65.0]
[1721936406187,5.9443,168.23,168.12,66.18917895]
[1721936407018,5.9424,168.28,168.12,66.18917895]
[1721936407197,2.36383657,168.3,168.12,66.18917895]
[1721936407402,256.6,168.34,168.13,36.8688]
[1721936407595,0.69940825,168.35,168.15,22.5053]
[1721936407596,5.9411,168.32,168.15,22.5053]
[1721936407795,5.9411,168.32,168.16,66.18852712]
[1721936408113,5.9414,168.31,168.16,66.18852712]
[1721936408321,22.35675183,168.35,168.16,66.18852712]
[1721936408491,30.56,168.32,168.16,66.18852712]
[1721936408799,14.8535,168.31,168.16,66.18852712]
[1721936409009,5.9432,168.26,168.16,66.18852712]
[1721936409197,5.9428,168.27,168.16,66.18852712]
[1721936409398,5.9427,168.28,168.16,66.18852712]
[1721936409700,34.8535,168.31,168.16,65.0]
[1721936410214,45.4162,168.28,168.15,22.5053]
[1721936410623,20.0,168.27,168.15,22.5053]
[1721936410918,5.9438,168.24,168.15,22.5053]
[1721936411313,5.9435,168.25,168.15,22.5053]
[1721936411617,30.56,168.28,168.16,1.18902283]
[1721936411817,30.56,168.28,168.16,65.0]
[1721936412001,5.9432,168.26,168.16,65.0]
[1721936412796,5.9429,168.27,168.16,65.0]
[1721936413611,5.9432,168.26,168.16,65.0]
[1721936413913,5.9429,168.27,168.16,66.18890071]
[1721936414106,36.5025,168.28,168.16,66.18890071]
[1721936414306,36.73890116,168.32,168.16,66.18890071]
[1721936414623,30.56,168.32,168.17,6.4982]
[1721936414808,30.56,168.32,168.18,66.18850755]
[1721936415121,30.56,168.36,168.19,21.8004]
[1721936415301,36.4996,168.36,168.2,66.18828041]
[1721936415495,36.4996,168.36,168.21,1.18825394]
[1721936415496,5.9401,168.35,168.21,1.18825394]
[1721936416301,30.56,168.36,168.21,1.18825394]
[1721936416698,5.94,168.35,168.21,1.18825394]
[1721936416900,9.32472989,168.37,168.22,21.6836]
[1721936417117,30.56,168.4,168.23,52.42399028]
[1721936417333,30.56,168.4,168.24,21.18801547]
[1721936417624,30.56,168.4,168.25,45.0]
[1721936417625,5.9386,168.39,168.25,45.0]
[1721936417796,5.9389,168.38,168.26,21.18802149]
[1721936418002,30.56,168.4,168.27,46.18804539]
[1721936418206,30.56,168.4,168.28,20.0]
[1721936418407,30.56,168.4,168.29,46.18791735]
[1721936418626,36.4983,168.4,168.3,1.18792884]
[1721936419122,5.9386,168.39,168.3,1.18792884]
[1721936419336,36.4983,168.4,168.3,1.18792884]
[1721936420237,5.9393,168.37,168.29,45.0]